Cogmind - Beta 10.2 @@@ ROGUE MODE // 2021.12.09 @ 21:12:03 Player: CORNISH Result: Destroyed by G-34 Mercenary with Small Laser Performance ------------- Evolutions (1) 500 Regions Visited (2) 400 Robots Destroyed (29) 145 Value Destroyed (631) 631 Prototype IDs (0) 0 Alien Tech Used (0) 0 Bonus (0) 0 TOTAL SCORE: 1676 Bonus ------- None Cogmind --------- Core Integrity 0/400 Matter 195/300 Energy 99/100 System Corruption 0% Temperature Cool (15) Movement Core (550) Ox10 Location -9/Materials Parts ------- > --- POWER (1) -------- (None) > --- PROPULSION (2) --- (None) > --- UTILITY (4) ------ High-capacity Storage Unit Targeting Computer > --- WEAPON (2) ------- (None) > --- INVENTORY (12) --- Light Ion Engine Terrain Scan Processor Peak State ------------ > --- POWER ------------ Light Nuclear Core > --- PROPULSION ------- Improved Aluminum Leg Improved Aluminum Leg > --- UTILITY ---------- High-capacity Storage Unit Targeting Computer Hardened Light Armor Plating Hardened Light Armor Plating > --- WEAPON ----------- Shotgun EMP Blaster > --- INVENTORY -------- Light Ion Engine Sensor Array Beam Rifle [Rating: 17] Favorites ----------- Power Light Ion Engine Engine Light Ion Engine Power Core Light Nuclear Core Propulsion Improved Aluminum Leg Leg Improved Aluminum Leg Wheel Wheel Utility Targeting Computer Device Structural Scanner Storage Medium Storage Unit Processor Targeting Computer Protection Hardened Light Armor Plating Weapon Grenade Launcher Energy Gun Beam Rifle Energy Cannon Beam Cannon Ballistic Gun Shotgun Launcher Grenade Launcher Build | -11 -10 -9 ------- Run | Scr Mat Mat Slots Evolved 2 | . . 2 Power . | . . . Propulsion . | . . . Utility 2 | . . 2 Weapon . | . . . Parts Attached 32 | 5 19 8 Power 3 | 1 2 . Engine 2 | 1 1 . Core 1 | . 1 . Reactor . | . . . Propulsion 7 | 2 4 1 Treads . | . . . Leg 4 | . 3 1 Wheel 3 | 2 1 . Hover . | . . . Flight . | . . . Utility 11 | . 7 4 Device 4 | . 2 2 Storage 4 | . 4 . Processor 1 | . 1 . Hackware . | . . . Protection 2 | . . 2 Artifact . | . . . Weapon 11 | 2 6 3 Energy Gun 1 | . . 1 Energy Cannon 2 | . 2 . Ballistic Gun 5 | 2 2 1 Ballistic Cannon . | . . . Launcher 3 | . 2 1 Special Weapon . | . . . Impact Weapon . | . . . Slashing Weapon . | . . . Piercing Weapon . | . . . Special Melee Weapon . | . . . Unidentified Prototypes . | . . . Parts Lost 10 | . . 10 Power 1 | . . 1 Propulsion 2 | . . 2 Utility 3 | . . 3 Weapon 4 | . . 4 Highest Loss Streak 9 | . . 9 Average Slot Usage (%) 97 | . 99 93 Engine 7 | . 10 . Core 4 | . 3 9 Leg 23 | . 24 20 Wheel 2 | . 3 . Device 7 | . 9 1 Storage 13 | . 13 11 Processor 6 | . 4 11 Protection 5 | . . 19 Energy Gun 2 | . . 7 Energy Cannon 5 | . 7 . Ballistic Gun 7 | . 8 3 Launcher 10 | . 11 8 Naked Turns . | . . . Heaviest Build 54 | 7 43 54 Greatest Support 26 | 20 26 26 Greatest Overweight (x) 10 | . 3 10 Average Overweight (x) . | . . 1 Largest Inventory Capacity 12 | 4 12 12 Average Capacity 7 | 4 6 12 Most Carried 8 | 4 8 6 Average Carried 4 | 2 5 3 Final Capacity 12 | 4 12 12 Final Carried 5 | 3 5 2 Class Distribution -------------------- 100% | Mutant Dominant Class ---------------- Mutant | -10/Materials Mutant | -9/Materials Resources | -11 -10 -9 ----------- Run | Scr Mat Mat Matter Collected 594 | 268 168 158 Remotely . | . . . Salvage Created 697 | 43 217 437 Parts 67 | . 28 39 Haulers Intercepted 1 | . 1 . Recyclers Shooed . | . . . Parts Field Recycled . | . . . Retrieved Matter . | . . . Parts Self-Destructed . | . . . Prevented . | . . . Kills | -11 -10 -9 ------- Run | Scr Mat Mat Combat Hostiles Destroyed 18 | 1 10 7 Guns 5 | 1 . 4 Cannons 1 | . 1 . AOE 12 | . 9 3 Classes Destroyed 8 | 1 4 3 Worker 2 | . 2 . Builder 5 | . . 5 Tunneler 1 | . . 1 Hauler 1 | . 1 . Watcher 2 | . 2 . Swarmer 6 | . 6 . Grunt 10 | 1 4 5 Sentry 2 | . . 2 Best Kill Streak 9 | 1 6 9 Combat Bots Only 5 | 1 5 3 Max Kills in Single Turn 3 | 1 3 2 Gunslinging . | . . . Exploded 3 | . 3 1 Melee . | . . . Uniques/NPCs Destroyed . | . . . Combat | -11 -10 -9 -------- Run | Scr Mat Mat Damage Taken 1730 | 34 286 1410 Core 463 | . 61 402 Absorbed by Shields . | . . . Core Remaining (%) 87 | 100 75 . Volleys Fired 54 | 3 20 31 Largest 2 | 2 2 2 Hottest 90 | 40 90 89 Shots Fired 78 | 6 27 45 Gun 39 | 6 3 30 Cannon 13 | . 13 . Launcher 26 | . 11 15 Special . | . . . Kinetic 25 | 6 3 16 Thermal 27 | . 13 14 Explosive 11 | . 11 . Electromagnetic 15 | . . 15 Robot Hit Streak 5 | 3 5 4 Robot Miss Streak 7 | 1 7 3 Penetration Max . | . . . Secondary Targets . | . . . Shots Hit Robots 51 | 5 15 31 Core Hits 51 | 2 26 23 Critical Hits . | . . . Critical Kills . | . . . Critical Parts Destroyed . | . . . Melee Attacks . | . . . Impact . | . . . Slashing . | . . . Piercing . | . . . Sneak Attacks . | . . . Combat Hostiles . | . . . Follow-up Attacks . | . . . Damage Inflicted 1803 | 69 890 844 Guns 438 | 69 20 349 Cannons 142 | . 142 . Explosions 1223 | . 728 495 Melee . | . . . Ramming . | . . . Kinetic 337 | 69 20 248 Thermal 462 | . 301 161 Explosive 569 | . 569 . Electromagnetic 435 | . . 435 Impact . | . . . Slashing . | . . . Piercing . | . . . Highest Corruption . | . . . Average Corruption . | . . . Corruption Purged . | . . . Overload Shots . | . . . Overflow Damage 10 | . 8 2 Projectiles . | . . . Explosions 10 | . 8 2 Melee . | . . . Knockbacks . | . . . Impact . | . . . Kinetic . | . . . Secondary . | . . . Self-Inflicted Damage 134 | . 76 58 Shots 9 | . 4 5 Rammed . | . . . Targets Rammed . | . . . Kicked . | . . . Crushed . | . . . Highest Temperature 354 | . 142 354 Average Temperature 125 | . 49 152 Received Heat Transfer 639 | 18 30 591 Effects 2 | . . 2 Interference 2 | . . 2 Siege Activations . | . . . Robots Corrupted . | . . . Combat Hostiles . | . . . Parts Fried 1 | . . 1 Impact Corruptions . | . . . Robots Melted . | . . . Combat Hostiles . | . . . Parts Melted . | . . . Heat Transferred 705 | . 396 309 Parts Sabotaged . | . . . Parts Stolen . | . . . Parts Stripped . | . . . Power Chain Reactions 5 | . . 5 Missiles Intercepted . | . . . Alert | -11 -10 -9 ------- Run | Scr Mat Mat Peak Influence 364 | 20 184 364 Initial 56 | . 13 56 Average 76 | 3 52 155 Maximum Alert Level 1 | . . 1 Low Security (%) 93 | 100 100 76 Level 1 6 | . . 23 Level 2 . | . . . Level 3 . | . . . Level 4 . | . . . Level 5 . | . . . High Security . | . . . Max Security . | . . . Squads Dispatched 3 | . 1 2 Investigation 1 | . . 1 Extermination . | . . . Reinforcement 2 | . 1 1 Assault . | . . . Garrison . | . . . Intercept . | . . . Construction Impeded 1 | . . 1 Haulers Reinforced . | . . . Stealth | -11 -10 -9 --------- Run | Scr Mat Mat Distress Signals 1 | . . 1 Communications Jammed . | . . . Distress Signals . | . . . Times Spotted 29 | 1 15 13 Peak Tracking Total 5 | 1 5 5 Tactical Retreats 1 | . . 1 Traps | -11 -10 -9 ------- Run | Scr Mat Mat Traps Triggered 2 | . 1 1 Indirectly . | . . . Trap Hack Attempts . | . . . Triggered . | . . . Disarmed . | . . . Reprogrammed . | . . . Reused . | . . . Traps Extracted . | . . . Installed . | . . . Triggered . | . . . Machines | -11 -10 -9 ---------- Run | Scr Mat Mat Machines Disabled 6 | . 3 3 Max in Single Turn 3 | . 3 2 Machines Sabotaged . | . . . Garrisons Compromised . | . . . Overloaded Fab Kills . | . . . Fab Network Shutdowns . | . . . Hacking | -11 -10 -9 --------- Run | Scr Mat Mat Machines Accessed 9 | . 7 2 Terminals 6 | . 5 1 Fabricators . | . . . Repair Stations . | . . . Recycling Units 2 | . 2 . Scanalyzers 1 | . . 1 Garrison Access . | . . . Total Hacks 25 | . 17 8 Successful 15 | . 10 5 Failed 10 | . 7 3 Catastrophic 1 | . . 1 Database Lockouts . | . . . Manual . | . . . Terminals 16 | . 10 6 Fabricators . | . . . Repair Stations . | . . . Recycling Units 7 | . 7 . Scanalyzers 2 | . . 2 Garrison Access . | . . . Terminal Hacks 7 | . 4 3 Record 6 | . 3 3 Alert Level 1 | . 1 . Fabricator Hacks . | . . . Repair Station Hacks . | . . . Recycling Unit Hacks 6 | . 6 . Recycle Component 1 | . 1 . Process 2 | . 2 . Report Inventory 2 | . 2 . Retrieve Matter 1 | . 1 . Scanalyzer 2 | . . 2 Insert Component 1 | . . 1 Analyze 1 | . . 1 Garrison Access Hacks . | . . . Unauthorized Hacks . | . . . Terminals . | . . . Fabricators . | . . . Repair Stations . | . . . Recycling Units . | . . . Scanalyzers . | . . . Garrison Access . | . . . Data Cores Recovered . | . . . Used . | . . . Hacking Detections 6 | . 5 1 Full Trace Events 1 | . 1 . Feedback Events . | . . . Feedback Blocked . | . . . Robot Schematics Acquired . | . . . Robots Built . | . . . Matter . | . . . Time . | . . . Total Robot Build Rating . | . . . Part Schematics Acquired 1 | . . 1 Parts Built . | . . . Matter . | . . . Time . | . . . Total Part Build Rating . | . . . Parts Repaired . | . . . Time . | . . . Parts Recycled 1 | . 1 . Recycled Matter 99 | . 99 . Retrieved Matter 35 | . 35 . Retrieved Components . | . . . Parts Scanalyzed 1 | . . 1 Part Schematics Acquired 1 | . . 1 Parts Damaged . | . . . Bothacking | -11 -10 -9 ------------ Run | Scr Mat Mat Used RIF Installer . | . . . Robots Hacked . | . . . Non-combat . | . . . Combat . | . . . Robot Hacks Applied . | . . . Relay Couplers Released . | . . . Robots Rewired . | . . . Allies Hacked . | . . . Hacks Repelled . | . . . Allies | -11 -10 -9 -------- Run | Scr Mat Mat Total Allies . | . . . Largest Group . | . . . Highest-Rated Group . | . . . Highest-Rated Ally . | . . . Total Orders . | . . . Ally Attacks . | . . . Total Damage . | . . . Kills . | . . . Allies Corrupted . | . . . Allies Melted . | . . . Intel | -11 -10 -9 ------- Run | Scr Mat Mat Robot Analysis Total . | . . . Derelict Logs Recovered . | . . . Drone Launches . | . . . Drone Recoveries . | . . . Exploration | -11 -10 -9 ------------- Run | Scr Mat Mat Turns Passed 1406 | 90 945 371 Spaces Moved 973 | 96 719 158 Core 35 | 29 3 3 Treads . | . . . Legs 732 | . 577 155 Wheels 206 | 67 139 . Hover . | . . . Flight . | . . . Fastest Speed 50 | 50 80 150 Average Speed 120 | 70 114 177 Slowest Speed 550 | 80 200 550 Overloaded Moves . | . . . Propulsion Burnouts . | . . . Robots Hopped . | . . . Cave-ins Triggered . | . . . Exploration Rate (%) 38 | 9 92 15 Regions Visited 2 Branch Regions . Pre-discovered Areas . | . . . Known Exits Taken . | . . . Unknown Exits Taken 2 | 1 1 . Scrap Searched . | . . . Spaces Dug . | . . . Terrain Destroyed 117 | . 110 7 Melee . | . . . Projectile . | . . . AOE 117 | . 110 7 Terrain Rammed . | . . . Walls Destroyed . | . . . Machines Disabled . | . . . Actions | -11 -10 -9 --------- Run | Scr Mat Mat Total 1140 | 111 820 209 Wait 21 | . 18 3 Move 971 | 95 718 158 Hop . | . . . Pick Up 34 | 8 21 5 Fast Attach 4 | . 4 . Attach 24 | 5 12 7 Detach 4 | . 3 1 Swap 4 | . 3 1 Drop 24 | . 21 3 Fire 54 | 3 20 31 Melee . | . . . Ram . | . . . Kick . | . . . Crush . | . . . Escape Stasis . | . . . Rewire . | . . . Trap . | . . . Miscellaneous . | . . . Route ------- -11/Scrapyard -10/Materials (discovered 4 exits: *Mat x3 / [*Min]) -9/Materials History --------- Turn | Location | Event 2 | -11/Scrapyard | Met Revision 17 64 | -11/Scrapyard | Discovered new exit (range 8) 91 | -11/Scrapyard | Entered Materials 269 | -10/Materials | Discovered new exit (range 7) 300 | -10/Materials | Build established: Mutant 640 | -10/Materials | Discovered new exit (range 6) 750 | -10/Materials | Discovered new exit (range 7) 960 | -10/Materials | Discovered new exit (range 16) 1036 | -10/Materials | Entered another Materials area 1036 | -9/Materials | Evolved 2 slots: Utility x2 1393 | -9/Materials | Core integrity fell below 50% 1402 | -9/Materials | Core integrity fell below 20% 1407 | -9/Materials | Destroyed by G-34 Mercenary with Small Laser Last Messages --------------- EMP Blaster destroyed. U-05 Engineer lays Concrete. U-05 Engineer destroyed. G-34 Mercenary misfires. Imp. Aluminum Leg destroyed. K-01 Serf collects debris. Hrd. Light Armor Plating destroyed. K-01 Serf collects debris. Sensor Array destroyed. K-01 Serf collects debris. G-34 Mercenary destroyed. K-01 Serf collects debris. Shotgun destroyed. K-01 Serf collects debris. R-06 Scavenger collects Welding Torch. K-01 Serf collects debris. R-06 Scavenger collects Sml. Laser. U-05 Engineer lays Concrete. K-01 Serf collects debris. [Achievement: First Step to Greatness] Map ----- +----------------------------------------------------+ | ??????????????????????????????????????????????? | | ??????????????????????????????????????????????? | | ??????????????????????????????????????????????? | | ??????????????????????????????????????????????? | | ??????????????????????????????????????????????? | | ??????????????????????????????????????????????? | | ??????????????????????????????????????????????? | | ??????????????????????????????????????????????? | | ??????????????????????????????????????????????? | | ??????????????????????????????????????????????? | | ??????????????????????????????????????????????? | | ??????????????????????????????????????????????? | | ??????????????????????????????????????????????? | | ??????????????????????????????????????????????? | | ??????????????????????????????????????????????? | | ??????????????????????????????????????????????? | | ??????????????????????????????????????????????? | | ??????????????????????????????????????????????? | | ??????????????????????????????????????????????? | | ??????????????????????????????????????????????? | | ??????????????????????????????????????????????? | | ??????????????????????????????????????????????? | | ??????????????????????????????????????????????? | | ??????????????###############?????????????????? | | ??????????????# #?????????????????? | | ??????????????# @ #?????????????????? | | ??????????# # Y! #?????????????????? | | ??????????# %+=g kg * | #?????????????????? | | ??????????# # ua!!=g= ! #?????????????????? | | ??????????????# !r == ! #?????????????????? | | ??????????????#### %##/#####?????????????????? | | ?????????????????#%#### ###???????????????????? | | ?????????????????# ?# ##??????????????????? | | ?????????????????#??# ###########?????????? | | ????????????????????# # #?????????? | | ????????????????????# # #?????????? | | ????????????????????# # #?????????? | | ????????????????????## ## #?????????? | | ?????????????????????# ## #?????????? | | ?????????????????????# ## #?????????? | | ?????????????????????# ## #?????????? | | ?????????????????????# !## #?????????? | | ?????????????????????# ######+#####?????????? | | ???????? ###+### #### #???????????? | | ???????? = #???????????? | | ???????? #???????????? | | ???????? #???????????? | | ????????! ############## #???????????? | | ?????????###+???????????????## ##???????????? | | ?????????????????????######### #????????????? | +----------------------------------------------------+ Best States ------------- Heat Dissipation 28 Energy Generation 14 Energy Capacity 160 Matter Stores 300 Matter Capacity 450 Sight Range 16 Robot Scan Range 10 Terrain Scan Density 10 Armor Coverage 300 Evasion (%) 50 Targeting Accuracy 5 Item Schematics ----------------- Lgt. Ion Engine | -9/Materials | Scanalyzed Robot Schematics ------------------ None Fabricated ------------ Nothing Alien Tech Used ----------------- None Achievements -------------- First Step to Greatness Let's See Who's Tougher Loot Pinata Storm Trooper Challenges ------------ None Game ------ Seed KineticNetworkInitializer Manual? 0 Play Time 00:45:39 Cumulative 1.9 hours Start 2021.12.09 @ 20:22:49 End 2021.12.09 @ 21:12:03 Sessions 1 Manual Loads 0 Difficulty Rogue Special Mode None Game No. 2 Rogue 2 Adventurer 0 Explorer 0 Win Type - Total 0 Types 0/0/0/0/0/0/0/0/0 Lore% 1 Gallery% 3 Achievement% 3 Wizard Run 0 Options --------- ASCII 0 Keyboard 0 Movement Mouse Keybinds 0 Fullscreen 1 Font 18/SmallcapsGlow Map View 76x50 Tactical HUD 0 Map Filters NONE Filters NONE Steam 1 RUN: 92565be8-8e9a-4d39-a90b-756fe9267ede